fUST/lending_fUST_20250408
["ID","MTS","AMOUNT","RATE_DAILY","PERIOD"]
[357483931,1744081853407,-954.3,0.00023835,2]
[357483932,1744081853417,-1338.67,0.00023835,2]
[357483933,1744081853427,-500.0,0.00023835,2]
[357483934,1744081853436,-500.0,0.00023835,2]
[357483935,1744081853446,-500.0,0.00023835,2]
[357483936,1744081853456,-500.0,0.00023835,2]
[357483937,1744081853466,-6846.45,0.00023835,2]
[357483938,1744081853476,-653.14,0.00023835,2]
[357483939,1744081853485,-500.0,0.00023835,2]
[357483940,1744081853495,-1391.18,0.00023835,2]
[357483941,1744081853505,-1003.15,0.00024,2]
[357483942,1744081853515,-609.09158987,0.00024109,2]
[357483943,1744081853525,-500.0,0.00024109,2]
[357483944,1744081853535,-189.13849753,0.00024109,2]
[357483945,1744081853545,-500.0,0.00024109,2]
[357483946,1744081853555,-2803.81,0.00024109,2]
[357483947,1744081853564,-500.0,0.00024109,2]
[357483948,1744081853575,-500.0,0.00024109,2]
[357483949,1744081853585,-500.0,0.00024109,2]
[357483950,1744081853595,-500.0,0.00024109,2]
[357483951,1744081853605,-500.0,0.00024109,2]
[357483952,1744081853615,-500.0,0.00024109,2]
[357483953,1744081853625,-968.81,0.00024109,2]
[357483954,1744081853634,-500.47,0.00024109,2]
[357483955,1744081853643,-500.0,0.00024109,2]
[357483956,1744081853653,-500.0,0.00024109,2]
[357483957,1744081853663,-809.84,0.00024109,2]
[357483958,1744081853673,-764.08,0.00024109,2]
[357483959,1744081853683,-511.46,0.00024109,2]
[357483960,1744081853693,-500.0,0.00024109,2]
[357483961,1744081853703,-550.16,0.00024109,2]
[357483962,1744081853713,-921.48,0.00024109,2]
[357483963,1744081853723,-500.0,0.00024109,2]
[357483964,1744081853734,-930.44,0.00024109,2]
[357483965,1744081853744,-647.67,0.00024109,2]
[357483966,1744081853753,-500.0,0.00024109,2]
[357483967,1744081853763,-357.53557895,0.00024109,2]
[357483968,1744081853772,-293.47734858,0.00024109,2]
[357483969,1744081853782,-500.0,0.00024109,2]
[357483970,1744081853792,-500.0,0.00024109,2]
[357483971,1744081853802,-556.88,0.00024109,2]
[357483972,1744081853812,-500.0,0.00024109,2]
[357483973,1744081853822,-819.25,0.00024109,2]
[357483974,1744081853831,-500.0,0.00024109,2]
[357483975,1744081853984,-526.33418358,0.00024109,2]
[357483976,1744081853994,-500.0,0.00024109,2]
[357483977,1744081854004,-789.79,0.00024109,2]
[357483978,1744081854014,-500.0,0.00024109,2]
[357483979,1744081854024,-500.0,0.00024109,2]
[357483980,1744081854033,-1688.2,0.00024109,2]
[357483981,1744081854043,-1342.25,0.00024109,2]
[357483982,1744081854053,-500.0,0.00024109,2]
[357483983,1744081854062,-500.0,0.00024109,2]
[357483984,1744081854072,-500.0,0.00024109,2]
[357483985,1744081854082,-500.0,0.00024109,2]
[357483986,1744081854091,-958.86,0.00024109,2]
[357483987,1744081854101,-1653.17,0.00024109,2]
[357483988,1744081854111,-500.0,0.00024109,2]
[357483989,1744081854121,-2115.74,0.00024109,2]
[357483990,1744081854131,-1255.28,0.00024109,2]
[357483991,1744081854141,-912.84,0.00024109,2]
[357483992,1744081854151,-500.0,0.00024109,2]
[357483993,1744081854160,-515.31,0.00024109,2]
[357483994,1744081854170,-487.4252717,0.00024109,2]
[357483995,1744081854180,-828.11,0.00024109,2]
[357483996,1744081854190,-522.7,0.00024109,2]
[357483997,1744081854200,-500.0,0.00024109,2]
[357483998,1744081854211,-665.53,0.00024109,2]
[357483999,1744081854220,-500.0,0.00024109,2]
[357484000,1744081854230,-477.61740942,0.00024109,2]
[357484001,1744081854240,-500.0,0.00024109,2]
[357484002,1744081854249,-592.81,0.00024109,2]
[357484003,1744081854259,-1007.96,0.00024109,2]
[357484004,1744081854269,-500.0,0.00024109,2]
[357484005,1744081854280,-1513.92,0.00024109,2]
[357484006,1744081854290,-1267.41,0.00024109,2]
[357484007,1744081854303,-500.0,0.00024109,2]
[357484008,1744081854313,-500.0,0.00024109,2]
[357484009,1744081854323,-500.0,0.00024109,2]
[357484010,1744081854333,-1030.35,0.00024109,2]
[357484011,1744081854344,-500.0,0.00024109,2]
[357484012,1744081854354,-500.0,0.00024109,2]
[357484013,1744081854365,-500.0,0.00024109,2]
[357484014,1744081854375,-500.0,0.00024109,2]
[357484015,1744081854385,-4108.07,0.00024109,2]
[357484016,1744081854395,-1082.33,0.00024109,2]
[357484017,1744081854405,-500.0,0.00024109,2]
[357484018,1744081854415,-543.95,0.00024109,2]
[357484019,1744081854425,-405.78504749,0.00024109,2]
[357484020,1744081854435,-500.0,0.00024109,2]
[357484021,1744081854444,-1330.51,0.00024109,2]
[357484022,1744081854454,-1439.3,0.00024109,2]
[357484023,1744081854464,-836.08,0.00024109,2]
[357484024,1744081854474,-961.73,0.00024109,2]
[357484025,1744081854484,-1514.49,0.00024109,2]
[357484026,1744081854494,-1141.15,0.00024109,2]
[357484027,1744081854504,-792.22,0.00024109,2]
[357484028,1744081854514,-2372.07,0.00024109,2]
[357484029,1744081854523,-500.0,0.00024109,2]
[357484030,1744081854533,-500.0,0.00024109,2]
[357484031,1744081854543,-500.0,0.00024109,2]
[357484032,1744081854553,-910.81,0.00024109,2]
[357484033,1744081854563,-500.0,0.00024109,2]
[357484034,1744081854572,-455.96637912,0.00024109,2]
[357484035,1744081854582,-1896.06,0.00024109,2]
[357484036,1744081854592,-1257.28,0.00024109,2]
[357484037,1744081854602,-866.78,0.00024109,2]
[357484038,1744081854612,-500.0,0.00024109,2]
[357484039,1744081854622,-500.0,0.00024109,2]
[357484040,1744081854632,-884.67,0.00024109,2]
[357484041,1744081854642,-500.0,0.00024109,2]
[357484042,1744081854652,-1740.48,0.00024109,2]
[357484043,1744081854662,-500.0,0.00024109,2]
[357484044,1744081854671,-500.0,0.00024109,2]
[357484045,1744081854680,-536.56,0.00024109,2]
[357484046,1744081854695,-969.19,0.00024109,2]
[357484047,1744081854705,-500.0,0.00024109,2]
[357484048,1744081854715,-1688.58,0.00024109,2]
[357484049,1744081854725,-954.3,0.00024109,2]
[357484050,1744081854734,-1338.67,0.00024109,2]
[357484051,1744081854744,-500.0,0.00024109,2]
[357484052,1744081854754,-500.0,0.00024109,2]
[357484053,1744081854764,-500.0,0.00024109,2]
[357484054,1744081854774,-500.0,0.00024109,2]
[357484055,1744081854784,-6846.45,0.00024109,2]
[357484056,1744081854793,-653.14,0.00024109,2]
[357484057,1744081854803,-500.0,0.00024109,2]
[357484058,1744081854813,-1391.18,0.00024109,2]
[357484059,1744081854823,-215.0738,0.00024142,2]
[357484060,1744081854832,-500.0,0.00024279,2]
[357484061,1744081854844,-500.0,0.00024279,2]
[357484062,1744081854854,-500.0,0.00024279,2]
[357484063,1744081854864,-500.0,0.00024279,2]
[357484064,1744081854874,-502.8704905,0.00024279,2]
[357484065,1744081854884,-500.0,0.00024279,2]
[357484066,1744081854893,-500.0,0.00024279,2]
[357484067,1744081854903,-500.0,0.00024279,2]
[357484068,1744081854913,-502.23508926,0.00024279,2]
[357484069,1744081854922,-500.0,0.00024383,2]
[357484070,1744081854932,-500.0,0.00024383,2]
[357484071,1744081854941,-2803.81,0.00024383,2]
[357484072,1744081854951,-500.0,0.00024383,2]
[357484073,1744081854961,-500.0,0.00024383,2]
[357484074,1744081854971,-500.0,0.00024383,2]
[357484075,1744081854981,-500.0,0.00024383,2]
[357484076,1744081854991,-500.0,0.00024383,2]
[357484077,1744081855001,-500.0,0.00024383,2]
[357484078,1744081855012,-968.81,0.00024383,2]
[357484079,1744081855021,-500.47,0.00024383,2]
[357484080,1744081855031,-500.0,0.00024383,2]
[357484081,1744081855040,-500.0,0.00024383,2]
[357484082,1744081855050,-809.84,0.00024383,2]
[357484083,1744081855060,-764.08,0.00024383,2]
[357484084,1744081855070,-511.46,0.00024383,2]
[357484085,1744081855080,-500.0,0.00024383,2]
[357484086,1744081855090,-550.16,0.00024383,2]
[357484087,1744081855100,-921.48,0.00024383,2]
[357484088,1744081855111,-500.0,0.00024383,2]
[357484089,1744081855121,-930.44,0.00024383,2]
[357484090,1744081855131,-647.67,0.00024383,2]
[357484091,1744081855141,-500.0,0.00024383,2]
[357484092,1744081855152,-500.0,0.00024383,2]
[357484093,1744081855163,-459.00766799,0.00024383,2]
[357484094,1744081855173,-556.88,0.00024383,2]
[357484095,1744081855183,-500.0,0.00024383,2]
[357484096,1744081855192,-819.25,0.00024383,2]
[357484097,1744081855202,-500.0,0.00024383,2]
[357484098,1744081855211,-500.0,0.00024383,2]
[357484099,1744081855221,-789.79,0.00024383,2]
[357484100,1744081855230,-500.0,0.00024383,2]
[357484101,1744081855240,-500.0,0.00024383,2]
[357484102,1744081855250,-1688.2,0.00024383,2]
[357484103,1744081855260,-1342.25,0.00024383,2]
[357484104,1744081855270,-500.0,0.00024383,2]
[357484105,1744081855279,-500.0,0.00024383,2]
[357484106,1744081855289,-521.50206092,0.00024383,2]
[357484107,1744081855302,-539.18233485,0.00024383,2]
[357484108,1744081855311,-958.86,0.00024383,2]
[357484109,1744081855321,-1653.17,0.00024383,2]
[357484110,1744081855331,-500.0,0.00024383,2]
[357484111,1744081855340,-2115.74,0.00024383,2]
[357484112,1744081855350,-1255.28,0.00024383,2]
[357484113,1744081855359,-912.84,0.00024383,2]
[357484114,1744081855369,-500.0,0.00024383,2]
[357484115,1744081855380,-515.31,0.00024383,2]
[357484116,1744081855390,-828.11,0.00024383,2]
[357484117,1744081855401,-522.7,0.00024383,2]
[357484118,1744081855411,-500.0,0.00024383,2]
[357484119,1744081855421,-665.53,0.00024383,2]
[357484120,1744081855430,-500.0,0.00024383,2]
[357484121,1744081855440,-500.0,0.00024383,2]
[357484122,1744081855450,-592.81,0.00024383,2]
[357484123,1744081855462,-1007.96,0.00024383,2]
[357484124,1744081855477,-500.0,0.00024383,2]
[357484125,1744081855494,-1513.92,0.00024383,2]
[357484126,1744081855508,-1267.41,0.00024383,2]
[357484127,1744081855523,-500.0,0.00024383,2]
[357484128,1744081855536,-500.0,0.00024383,2]
[357484129,1744081855550,-500.0,0.00024383,2]
[357484130,1744081855564,-1030.35,0.00024383,2]
[357484131,1744081855577,-500.0,0.00024383,2]
[357484132,1744081855592,-500.0,0.00024383,2]
[357484133,1744081855606,-194.28682227,0.00024383,2]
[357484134,1744081855619,-500.0,0.00024383,2]
[357484135,1744081855633,-4108.07,0.00024383,2]
[357484136,1744081855648,-1082.33,0.00024383,2]
[357484137,1744081855662,-500.0,0.00024383,2]
[357484138,1744081855675,-543.95,0.00024383,2]
[357484139,1744081855688,-500.0,0.00024383,2]
[357484140,1744081855702,-1330.51,0.00024383,2]
[357484141,1744081855714,-1439.3,0.00024383,2]
[357484142,1744081855727,-836.08,0.00024383,2]
[357484143,1744081855742,-961.73,0.00024383,2]
[357484144,1744081855756,-1514.49,0.00024383,2]
[357484145,1744081855769,-1141.15,0.00024383,2]
[357484146,1744081855781,-792.22,0.00024383,2]
[357484147,1744081855792,-2372.07,0.00024383,2]
[357484148,1744081855804,-500.0,0.00024383,2]
[357484149,1744081855817,-500.0,0.00024383,2]
[357484150,1744081855829,-910.81,0.00024383,2]
[357484151,1744081855842,-500.0,0.00024383,2]
[357484152,1744081855856,-1896.06,0.00024383,2]
[357484153,1744081855869,-1257.28,0.00024383,2]
[357484154,1744081855882,-866.78,0.00024383,2]
[357484155,1744081855897,-500.0,0.00024383,2]
[357484156,1744081855914,-500.0,0.00024383,2]
[357484157,1744081855928,-884.67,0.00024383,2]
[357484158,1744081855941,-500.0,0.00024383,2]
[357484159,1744081855952,-1740.48,0.00024383,2]
[357484160,1744081855964,-500.0,0.00024383,2]
[357484161,1744081855975,-500.0,0.00024383,2]
[357484162,1744081855987,-536.56,0.00024383,2]
[357484163,1744081856002,-969.19,0.00024383,2]
[357484164,1744081856017,-500.0,0.00024383,2]
[357484165,1744081856031,-1688.58,0.00024383,2]
[357484166,1744081856043,-954.3,0.00024383,2]
[357484167,1744081856055,-1338.67,0.00024383,2]
[357484168,1744081856066,-500.0,0.00024383,2]
[357484169,1744081856079,-500.0,0.00024383,2]
[357484170,1744081856092,-500.0,0.00024383,2]
[357484171,1744081856104,-500.0,0.00024383,2]
[357484172,1744081856116,-6846.45,0.00024383,2]
[357484173,1744081856127,-653.14,0.00024383,2]
[357484174,1744081856140,-500.0,0.00024383,2]
[357484175,1744081856152,-1391.18,0.00024383,2]
[357484176,1744081856164,-157.167506,0.000245,2]
[357484177,1744081856176,-175.379525,0.000245,2]
[357484178,1744081856188,-160.0,0.00024528,2]
[357484179,1744081856200,-160.0,0.00024528,2]
[357484180,1744081856212,-160.0,0.00024528,2]
[357484181,1744081856224,-160.0,0.00024528,2]
[357484182,1744081856236,-12530.86563381,0.00024528,2]
[357484183,1744081856247,-419.46366559,0.00024528,2]
[357484184,1744081856260,-837.41003169,0.00024528,2]
[357484185,1744081856272,-500.0,0.00024657,2]
[357484186,1744081856285,-500.0,0.00024657,2]
[357484187,1744081856297,-200.0,0.00024657,2]
[357484188,1744081856310,-500.0,0.00024657,2]
[357484189,1744081856323,-500.0,0.00024657,2]
[357484190,1744081856335,-269.76998995,0.00024657,2]
[357484191,1744081856348,-2803.81,0.00024657,2]
[357484192,1744081856360,-500.0,0.00024657,2]
[357484193,1744081856374,-354.07111573,0.00024657,2]
[357484194,1744081856388,-500.0,0.00024657,2]
[357484195,1744081856400,-500.0,0.00024657,2]
[357484196,1744081856413,-500.0,0.00024657,2]
[357484197,1744081856427,-500.0,0.00024657,2]
[357484198,1744081856440,-968.81,0.00024657,2]
[357484199,1744081856452,-500.47,0.00024657,2]
[357484200,1744081856464,-500.0,0.00024657,2]
[357484201,1744081856477,-500.0,0.00024657,2]
[357484202,1744081856489,-809.84,0.00024657,2]
[357484203,1744081856501,-764.08,0.00024657,2]
[357484204,1744081856513,-500.0,0.00024657,2]
[357484205,1744081856525,-500.0,0.00024657,2]
[357484206,1744081856537,-500.0,0.00024657,2]
[357484207,1744081856548,-500.0,0.00024657,2]
[357484208,1744081856561,-503.29519876,0.00024657,2]
[357484209,1744081856573,-511.46,0.00024657,2]
[357484210,1744081856584,-500.0,0.00024657,2]
[357484211,1744081856596,-550.16,0.00024657,2]
[357484212,1744081856609,-921.48,0.00024657,2]
[357484213,1744081856622,-500.0,0.00024657,2]
[357484214,1744081856634,-930.44,0.00024657,2]
[357484215,1744081856646,-647.67,0.00024657,2]
[357484216,1744081856658,-500.0,0.00024657,2]
[357484217,1744081856670,-500.0,0.00024657,2]
[357484218,1744081856682,-556.88,0.00024657,2]
[357484219,1744081856694,-500.0,0.00024657,2]
[357484220,1744081856706,-819.25,0.00024657,2]
[357484221,1744081856718,-500.0,0.00024657,2]
[357484222,1744081856730,-500.0,0.00024657,2]
[357484223,1744081856742,-789.79,0.00024657,2]
[357484224,1744081856754,-500.0,0.00024657,2]
[357484225,1744081856766,-154.01714416,0.00024657,2]
[357484226,1744081856777,-1688.2,0.00024657,2]
[357484227,1744081856789,-1342.25,0.00024657,2]
[357484228,1744081856801,-500.0,0.00024657,2]
[357484229,1744081856812,-500.0,0.00024657,2]
[357484230,1744081856825,-958.86,0.00024657,2]
[357484231,1744081856836,-1653.17,0.00024657,2]
[357484232,1744081856848,-500.0,0.00024657,2]
[357484233,1744081856860,-2115.74,0.00024657,2]
[357484234,1744081856871,-1255.28,0.00024657,2]
[357484235,1744081856883,-912.84,0.00024657,2]
[357484236,1744081856895,-500.0,0.00024657,2]
[357484237,1744081856906,-515.31,0.00024657,2]
[357484238,1744081856920,-828.11,0.00024657,2]
[357484239,1744081856932,-522.7,0.00024657,2]
[357484240,1744081856944,-500.0,0.00024657,2]
[357484241,1744081856956,-665.53,0.00024657,2]
[357484242,1744081856968,-500.0,0.00024657,2]
[357484243,1744081856980,-500.0,0.00024657,2]
[357484244,1744081856992,-592.81,0.00024657,2]
[357484245,1744081857004,-1007.96,0.00024657,2]
[357484246,1744081857016,-500.0,0.00024657,2]
[357484247,1744081857028,-1513.92,0.00024657,2]
[357484248,1744081857040,-1267.41,0.00024657,2]
[357484249,1744081857052,-500.0,0.00024657,2]
[357484250,1744081857064,-326.45859928,0.00024657,2]
[357484251,1744081857076,-500.0,0.00024657,2]
[357484252,1744081857087,-1030.35,0.00024657,2]
[357484253,1744081857100,-500.0,0.00024657,2]
[357484254,1744081857113,-500.0,0.00024657,2]
[357484255,1744081857125,-500.0,0.00024657,2]
[357484256,1744081857136,-4108.07,0.00024657,2]
[357484257,1744081857148,-1082.33,0.00024657,2]
[357484258,1744081857161,-500.0,0.00024657,2]
[357484259,1744081857172,-543.95,0.00024657,2]
[357484260,1744081857184,-500.0,0.00024657,2]
[357484261,1744081857196,-1330.51,0.00024657,2]
[357484262,1744081857208,-1439.3,0.00024657,2]
[357484263,1744081857221,-836.08,0.00024657,2]
[357484264,1744081857233,-961.73,0.00024657,2]
[357484265,1744081857245,-1514.49,0.00024657,2]
[357484266,1744081857258,-1141.15,0.00024657,2]
[357484267,1744081857270,-792.22,0.00024657,2]
[357484268,1744081857282,-2372.07,0.00024657,2]
[357484269,1744081857296,-500.0,0.00024657,2]
[357484270,1744081857310,-500.0,0.00024657,2]
[357484271,1744081857323,-910.81,0.00024657,2]
[357484272,1744081857336,-500.0,0.00024657,2]
[357484273,1744081857348,-1896.06,0.00024657,2]
[357484274,1744081857361,-1257.28,0.00024657,2]
[357484275,1744081857647,-866.78,0.00024657,2]
[357484276,1744081857670,-500.0,0.00024657,2]
[357484277,1744081857684,-500.0,0.00024657,2]
[357484278,1744081857694,-884.67,0.00024657,2]
[357484279,1744081857704,-159.76477025,0.00024657,2]
[357484280,1744081857714,-500.0,0.00024657,2]
[357484281,1744081857724,-1740.48,0.00024657,2]
[357484282,1744081857734,-500.0,0.00024657,2]
[357484283,1744081857744,-500.0,0.00024657,2]
[357484284,1744081857753,-536.56,0.00024657,2]
[357484285,1744081857763,-969.19,0.00024657,2]
[357484286,1744081857773,-167.8303843,0.00024657,2]
[357484287,1744081857784,-1688.58,0.00024657,2]
[357484288,1744081857793,-954.3,0.00024657,2]
[357484289,1744081857803,-1338.67,0.00024657,2]
[357484290,1744081857813,-500.0,0.00024657,2]
[357484291,1744081857823,-243.72639097,0.00024657,2]
[357484292,1744081857833,-444.36723547,0.00024657,2]
[357484293,1744081857842,-500.0,0.00024657,2]
[357484294,1744081857851,-6846.45,0.00024657,2]
[357484295,1744081857861,-653.14,0.00024657,2]
[357484296,1744081857871,-500.0,0.00024657,2]
[357484297,1744081857881,-1391.18,0.00024657,2]
[357484298,1744081857890,-500.0,0.00024658,2]
[357484299,1744081857900,-500.0,0.00024658,2]
[357484300,1744081857909,-500.0,0.00024658,2]
[357484301,1744081857919,-500.0,0.00024658,2]
[357484302,1744081857928,-500.0,0.00024658,2]
[357484303,1744081857938,-500.0,0.00024658,2]
[357484304,1744081857947,-500.0,0.00024658,2]
[357484305,1744081857963,-500.0,0.00024658,2]
[357484306,1744081857973,-500.0,0.00024658,2]
[357484307,1744081857983,-500.0,0.00024658,2]
[357484308,1744081857993,-500.0,0.00024658,2]
[357484309,1744081858003,-500.0,0.00024658,2]
[357484310,1744081858012,-500.0,0.00024658,2]
[357484311,1744081858023,-500.0,0.00024658,2]
[357484312,1744081858033,-500.0,0.00024658,2]
[357484313,1744081858043,-500.0,0.00024658,2]
[357484314,1744081858053,-500.0,0.00024658,2]
[357484315,1744081858063,-500.0,0.00024658,2]
[357484316,1744081858073,-500.0,0.00024658,2]
[357484317,1744081858083,-500.0,0.00024658,2]
[357484318,1744081858092,-500.0,0.00024658,2]
[357484319,1744081858102,-500.0,0.00024658,2]
[357484320,1744081858111,-500.0,0.00024658,2]
[357484321,1744081858122,-500.0,0.00024658,2]
[357484322,1744081858132,-500.0,0.00024658,2]
[357484323,1744081858142,-500.0,0.00024658,2]
[357484324,1744081858152,-500.0,0.00024658,2]
[357484325,1744081858162,-500.0,0.00024658,2]
[357484326,1744081858171,-500.0,0.00024658,2]
[357484327,1744081858181,-500.0,0.00024658,2]
[357484328,1744081858192,-500.0,0.00024658,2]
[357484329,1744081858202,-500.0,0.00024658,2]
[357484330,1744081858212,-500.0,0.00024658,2]
[357484331,1744081858222,-500.0,0.00024658,2]
[357484332,1744081858232,-500.0,0.00024658,2]
[357484333,1744081858242,-437.08165054,0.00024658,2]
[357484334,1744081858252,-500.0,0.00024658,2]
[357484335,1744081858262,-500.0,0.00024658,2]
[357484336,1744081858272,-500.0,0.00024658,2]
[357484337,1744081858281,-500.0,0.00024658,2]
[357484338,1744081858292,-500.0,0.00024658,2]
[357484339,1744081858305,-500.0,0.00024658,2]
[357484340,1744081858316,-500.0,0.00024658,2]
[357484341,1744081858326,-500.0,0.00024658,2]
[357484342,1744081858336,-500.0,0.00024658,2]
[357484343,1744081858346,-500.0,0.00024658,2]
[357484344,1744081858356,-500.0,0.00024658,2]
[357484345,1744081858367,-500.0,0.00024658,2]
[357484346,1744081858378,-500.0,0.00024658,2]
[357484347,1744081858388,-500.0,0.00024658,2]
[357484348,1744081858398,-500.0,0.00024658,2]
[357484349,1744081858407,-500.0,0.00024658,2]
[357484350,1744081858420,-500.0,0.00024658,2]
[357484351,1744081858431,-500.0,0.00024658,2]
[357484352,1744081858440,-500.0,0.00024658,2]
[357484353,1744081858450,-500.0,0.00024658,2]
[357484354,1744081858460,-500.0,0.00024658,2]
[357484355,1744081858469,-500.0,0.00024658,2]
[357484356,1744081858479,-500.0,0.00024658,2]
[357484357,1744081858489,-500.0,0.00024658,2]
[357484358,1744081858499,-500.0,0.00024658,2]
[357484359,1744081858509,-500.0,0.00024658,2]
[357484360,1744081858519,-500.0,0.00024658,2]
[357484361,1744081858528,-500.0,0.00024658,2]
[357484362,1744081858538,-500.0,0.00024658,2]
[357484363,1744081858548,-500.0,0.00024658,2]
[357484364,1744081858559,-500.0,0.00024658,2]
[357484365,1744081858569,-500.0,0.00024658,2]
[357484366,1744081858578,-500.0,0.00024658,2]
[357484367,1744081858591,-500.0,0.00024658,2]
[357484368,1744081858602,-500.0,0.00024658,2]
[357484369,1744081858611,-500.0,0.00024658,2]
[357484370,1744081858621,-500.0,0.00024658,2]
[357484371,1744081858631,-500.0,0.00024658,2]
[357484372,1744081858642,-500.0,0.00024658,2]
[357484373,1744081858651,-450.0,0.00024658,2]
[357484374,1744081858661,-500.0,0.00024658,2]
[357484375,1744081858671,-500.0,0.00024658,2]
[357484376,1744081858681,-3000.0,0.000248,2]
[357484377,1744081858691,-3000.0,0.0002481,2]
[357484378,1744081858701,-3000.0,0.0002482,2]
[357484379,1744081858710,-3000.0,0.0002483,2]
[357484380,1744081858720,-3000.0,0.0002484,2]
[357484381,1744081858730,-3000.0,0.0002485,2]
[357484382,1744081858740,-3000.0,0.0002486,2]
[357484383,1744081858750,-3000.0,0.0002487,2]
[357484384,1744081858759,-501.42934886,0.00024873,2]
[357484385,1744081858769,-500.0,0.00024873,2]
[357484386,1744081858779,-500.0,0.00024873,2]
[357484387,1744081858788,-501.77085547,0.00024873,2]
[357484388,1744081858799,-501.38183964,0.00024873,2]
[357484389,1744081858808,-502.10400037,0.00024873,2]
[357484390,1744081858819,-503.74540764,0.00024873,2]
[357484391,1744081858829,-500.0,0.00024873,2]
[357484392,1744081858838,-501.06796866,0.00024873,2]
[357484393,1744081858848,-593.05159071,0.00024873,2]
[357484394,1744081858858,-256.9179675,0.00024873,2]
[357484395,1744081858869,-500.63505816,0.00024873,2]
[357484396,1744081858880,-500.0,0.00024873,2]
[357484397,1744081858890,-510.33701651,0.00024873,2]
[357484398,1744081858899,-301.64419783,0.00024873,2]
[357484399,1744081858910,-165.09083967,0.00024873,2]
[357484400,1744081858920,-502.22652041,0.00024873,2]
[357484401,1744081858930,-500.0,0.00024873,2]
[357484402,1744081858940,-501.97825502,0.00024873,2]
[357484403,1744081858950,-3000.0,0.0002488,2]
[357484404,1744081858959,-3000.0,0.0002489,2]
[357484405,1744081858969,-3000.0,0.000249,2]
[357484406,1744081858979,-151.0,0.000249,7]
[357484407,1744081858989,-151.0,0.000249,7]
[357484408,1744081858999,-1702.022067,0.000249,2]
[357484409,1744081859008,-1702.022067,0.000249,2]
[357484410,1744081859019,-444734.452938,0.000249,2]
[357484411,1744081859029,-151.0,0.000249,7]
[357484412,1744081859039,-151.0,0.000249,7]
[357484413,1744081859048,-151.0,0.000249,7]
[357484414,1744081859058,-151.0,0.000249,7]
[357484415,1744081859068,-3000.0,0.0002491,2]
[357484416,1744081859077,-3000.0,0.0002492,2]
[357484417,1744081859087,-3000.0,0.0002493,2]
[357484418,1744081859098,-460.69960098,0.00024931,2]
[357484419,1744081859107,-500.0,0.00024931,2]
[357484420,1744081859118,-2803.81,0.00024931,2]
[357484421,1744081859127,-192.35222418,0.00024931,2]
[357484422,1744081859137,-500.0,0.00024931,2]
[357484423,1744081859147,-500.0,0.00024931,2]
[357484424,1744081859157,-500.0,0.00024931,2]
[357484425,1744081859167,-500.0,0.00024931,2]
[357484426,1744081859178,-968.81,0.00024931,2]
[357484427,1744081859187,-500.47,0.00024931,2]
[357484428,1744081859202,-569.96734862,0.00024931,2]
[357484429,1744081859211,-500.0,0.00024931,2]
[357484430,1744081859221,-809.84,0.00024931,2]